bitfinex/quotes_ETHUSD_20250725
["timestamp","ask_amount","ask_price","bid_price","bid_amount"]
[1753436853977,2.70526493,3696.5,3696.2,0.4577]
[1753436854379,0.9428,3696.9,3696.3,1.3831]
[1753436854583,2.70532386,3696.5,3696.3,1.3831]
[1753436854884,2.70545936,3696.3,3696.0,1.4754]
[1753436855055,2.70534775,3696.4,3696.1,0.4577]
[1753436855259,2.70534775,3696.4,3696.2,0.4577]
[1753436855647,2.70534775,3696.4,3695.9,0.55]
[1753436855964,6.1624,3697.3,3695.9,0.55]
[1753436855965,2.7056277,3696.0,3695.9,0.55]
[1753436856281,0.1352,3696.2,3695.9,0.9881]
[1753436856479,0.1352,3696.2,3696.1,0.55]
[1753436856685,0.9127,3697.8,3696.1,1.5187]
[1753436856889,0.1352,3697.4,3697.0,0.55]
[1753436857087,0.9127,3698.2,3696.9,1.5187]
[1753436857088,2.7043137,3697.8,3697.2,0.55]
[1753436857257,2.70445694,3697.6,3697.2,0.55]
[1753436857458,0.1352,3697.7,3697.2,0.55]
[1753436857654,0.1352,3697.7,3697.4,0.55]
[1753436857871,2.70445694,3697.6,3697.5,0.4381]
[1753436858190,2.70418997,3698.0,3697.7,0.55]
[1753436858586,2.70418997,3698.0,3697.8,0.4381]
[1753436858885,2.7043838,3697.7,3697.6,1.5622]
[1753436859077,2.70459742,3697.5,3697.3,0.55]
[1753436859266,2.70460323,3697.4,3697.3,0.55]
[1753436859472,2.70467638,3697.3,3697.2,1.4949]
[1753436859956,2.70467638,3697.3,3697.2,5.8639]
[1753436860157,2.70489586,3697.0,3696.8,1.4624]
[1753436860388,2.70518855,3696.6,3696.5,6.496]
[1753436860598,2.70526173,3696.5,3696.4,1.4624]
[1753436860972,0.1352,3696.5,3696.4,4.368]
[1753436861173,0.1352,3696.5,3696.0,1.8489]
[1753436861494,2.8406813,3696.2,3696.1,4.368]
[1753436861680,0.1352,3696.2,3695.4,1.4665]
[1753436861861,2.70576237,3695.9,3695.5,5.8966]
[1753436862058,2.70576237,3695.9,3695.6,0.4381]
[1753436862263,2.70576237,3695.9,3695.6,0.9563]
[1753436862564,2.8408481,3696.0,3695.7,0.4381]
[1753436862765,0.1352,3696.0,3695.8,1.3944]
[1753436862978,0.1352,3696.6,3696.1,0.55]
[1753436863181,2.70526173,3696.5,3696.3,0.55]
[1753436863359,5.7054813,3696.2,3696.1,0.55]
[1753436863556,2.70542668,3696.3,3696.1,4.918]
[1753436863862,2.70540921,3696.3,3696.1,5.3561]
[1753436864260,0.1352,3696.4,3696.2,1.3944]
[1753436864607,0.1352,3696.7,3696.3,0.55]
[1753436864756,2.70504364,3696.8,3696.5,0.55]
[1753436864957,2.70526173,3696.5,3696.1,0.1352]
[1753436865191,2.70527048,3696.5,3696.2,4.916]
[1753436865391,0.1352,3696.6,3696.3,1.3944]
[1753436865594,0.58094149,3697.4,3696.4,0.55]
[1753436865760,0.1352,3696.9,3696.6,0.55]
[1753436865961,2.70483193,3697.1,3696.8,0.55]
[1753436866180,2.84002854,3697.1,3696.8,0.55]
[1753436866490,2.84002854,3697.1,3696.8,0.9881]
[1753436866693,2.70489586,3697.0,3696.9,4.365]
[1753436867879,0.58094149,3697.5,3695.9,0.4381]
[1753436867880,0.3179,3697.4,3695.9,0.4381]
[1753436868068,3.0,3697.1,3696.1,0.55]
[1753436868401,2.70527658,3696.5,3696.1,0.55]
[1753436868602,2.70527658,3696.5,3696.3,0.55]
[1753436868805,2.70533492,3696.4,3696.0,0.4381]
[1753436868965,2.70564325,3696.0,3695.8,1.4853]
[1753436869161,2.70570091,3695.9,3695.8,1.9234]
[1753436869376,2.70565052,3696.0,3695.8,6.2854]
[1753436869580,2.70552943,3696.2,3695.9,0.4381]
[1753436869800,2.70552943,3696.2,3696.0,0.4381]
[1753436869979,2.7055545,3696.1,3696.0,0.4381]
[1753436870176,2.70531487,3696.5,3696.1,1.9444]
[1753436870488,0.9127,3697.4,3696.3,0.55]
[1753436870666,2.70471318,3697.3,3696.5,0.55]
[1753436870996,2.70518855,3696.6,3696.5,0.55]
[1753436871666,2.70523695,3696.6,3696.5,4.909]
[1753436872008,0.58138453,3697.1,3696.2,2.8602]
[1753436872009,0.58138453,3697.1,3696.2,1.4658]
[1753436872205,2.70510374,3696.8,3696.2,1.4658]
[1753436872500,2.70557811,3696.1,3695.9,0.55]
[1753436872665,2.7056277,3696.0,3695.9,0.55]
[1753436872867,2.70570091,3695.9,3695.8,1.4373]
[1753436873300,2.70570091,3695.9,3695.4,1.4571]
[1753436873301,2.70599377,3695.5,3695.4,1.4571]
[1753436873499,2.70599377,3695.5,3695.4,5.8161]
[1753436874066,0.9127,3695.9,3695.4,5.8161]
[1753436874269,2.70599377,3695.5,3695.4,5.8161]
[1753436874473,2.70599377,3695.5,3695.4,0.001]
[1753436874694,3.61869377,3695.5,3695.4,4.36]
[1753436875906,2.70599377,3695.5,3695.4,0.001]
[1753436877992,5.84119377,3695.5,3695.4,0.001]
[1753436878208,2.70597654,3695.6,3695.4,0.001]
[1753436878504,2.70597654,3695.6,3695.4,0.4391]
[1753436878505,0.1352,3695.6,3695.4,0.4391]
[1753436878675,2.70599377,3695.5,3695.4,0.4391]
[1753436879108,2.70599377,3695.5,3695.4,0.001]
[1753436879490,0.1352,3695.6,3695.4,0.001]
[1753436879880,2.70599377,3695.5,3695.4,4.361]
[1753436880081,3.61869377,3695.5,3695.4,4.361]
[1753436880288,6.61869377,3695.5,3695.4,0.001]
[1753436880493,5.70599377,3695.5,3695.4,0.001]
[1753436881214,0.1352,3695.6,3695.4,0.001]
[1753436881215,0.1352,3695.6,3695.4,4.361]
[1753436881520,2.70560872,3696.1,3695.5,1.9444]
[1753436881690,0.1352,3696.4,3695.7,0.55]
[1753436882022,0.1352,3696.4,3695.4,4.361]
[1753436882023,0.9127,3696.3,3695.4,0.001]
[1753436882185,2.70599377,3695.5,3695.4,0.001]
[1753436882891,5.70599377,3695.5,3695.4,0.001]
[1753436883781,5.70599377,3695.5,3695.4,0.4391]
[1753436883981,5.70599377,3695.5,3695.4,0.001]
[1753436885014,6.61869377,3695.5,3695.4,0.001]
[1753436885408,5.70599377,3695.5,3695.4,0.001]
[1753436887824,7.25549377,3695.5,3695.4,0.001]
[1753436888126,8.22509377,3695.5,3695.4,0.001]
[1753436888492,6.67559377,3695.5,3695.4,0.001]
[1753436888710,5.70599377,3695.5,3695.4,0.001]
[1753436889845,12.53459377,3695.5,3695.4,1e-08]
[1753436890024,12.85249377,3695.5,3695.4,1e-08]
[1753436890341,8.49249377,3695.5,3695.4,1e-08]
[1753436890528,8.17459377,3695.5,3695.4,1e-08]
[1753436891233,5.70599377,3695.5,3695.4,1e-08]
[1753436891944,2.70582717,3695.8,3695.4,5.38030001]
[1753436892159,2.84105386,3695.7,3695.4,4.91000001]
[1753436892449,2.84119377,3695.5,3695.4,4.36000001]
[1753436892654,2.70563241,3696.0,3695.4,4.36000001]
[1753436892655,1.5645,3696.5,3695.4,6.29660001]
[1753436892814,0.1352,3695.9,3695.5,6.05976032]
[1753436893001,2.70543674,3696.3,3695.7,0.55]
[1753436893345,0.1352,3696.0,3695.8,1.3866]
[1753436893556,0.1352,3696.4,3695.9,1.9366]
[1753436893700,0.1352,3696.4,3696.1,0.55]
[1753436893898,0.002,3696.7,3696.3,0.55]
[1753436894105,0.1352,3696.6,3696.3,0.55]
[1753436894310,0.1352,3696.6,3696.4,1.3866]
[1753436894539,0.1352,3696.6,3696.5,0.4703]
[1753436895008,2.84038855,3696.6,3696.5,0.4703]
[1753436895361,2.84038855,3696.6,3696.5,4.8303]
[1753436895508,2.84038855,3696.6,3696.5,0.4703]
[1753436895709,2.84038855,3696.6,3696.5,4.8303]
[1753436895935,2.70518855,3696.6,3696.5,4.8303]
[1753436896133,2.70518855,3696.6,3696.5,0.4703]
[1753436896321,2.70518855,3696.6,3696.5,4.8303]
[1753436896755,2.8423741,3696.7,3696.5,5.7466]
[1753436896953,3.1372,3696.7,3696.6,0.4703]
[1753436897136,0.1372,3696.7,3696.6,0.4703]
[1753436897312,0.002,3696.7,3696.6,1.3866]
[1753436897641,0.002,3696.7,3696.6,1.9366]
[1753436898023,0.002,3696.7,3696.6,4.64178855]
[1753436898232,0.002,3696.7,3696.6,1.9366]
[1753436899322,0.002,3696.7,3696.6,4.64178855]
[1753436899627,0.002,3696.7,3696.6,6.14394043]
[1753436899811,0.002,3696.7,3696.6,6.11688855]
[1753436900717,0.002,3696.7,3696.6,13.47688855]
[1753436901107,0.002,3696.7,3696.6,13.47588855]
[1753436902812,0.002,3696.7,3696.6,6.11688855]
[1753436903012,0.002,3696.7,3696.6,5.8341]
[1753436903212,0.002,3696.7,3696.6,9.92588855]
[1753436903708,0.002,3697.5,3697.4,4.70960323]
[1753436903913,0.002,3697.5,3697.4,9.20380323]
[1753436904109,0.002,3697.5,3697.4,10.59040323]
[1753436905645,0.002,3697.5,3697.4,6.23140323]
[1753436905942,0.002,3697.5,3697.4,10.58940323]
[1753436906713,0.002,3698.2,3698.1,4.75829129]
[1753436906936,0.002,3698.2,3698.1,9.25149129]
[1753436907132,0.002,3698.2,3698.1,6.28009129]
[1753436907454,0.002,3698.2,3698.1,10.63809129]
[1753436908276,0.002,3698.2,3698.1,3.576]
[1753436908569,0.002,3698.2,3698.1,9.25049129]
[1753436909144,0.002,3698.2,3698.1,10.63709129]
[1753436912561,0.58193507,3699.4,3698.3,1.4896]
[1753436912851,0.1352,3700.0,3699.3,0.55]
[1753436913052,2.13093507,3700.7,3699.3,0.55]
[1753436913053,0.9696,3700.2,3699.5,0.55]
[1753436913260,0.9696,3700.2,3699.8,0.1352]
[1753436913468,0.1352,3700.4,3699.8,0.1352]
[1753436913670,1.6358,3700.0,3698.5,1.4269]
[1753436913841,1.6358,3700.0,3697.4,0.19886524]
[1753436913842,1.5006,3699.6,3698.2,1.4269]
[1753436914038,0.1352,3698.9,3698.3,4.4912]
[1753436914249,2.70377207,3698.6,3698.3,4.4912]
[1753436914542,0.9696,3698.5,3698.3,4.4912]
[1753436915047,2.70366575,3698.7,3698.4,0.55]
[1753436915367,2.70372573,3698.6,3698.5,4.906]
[1753436915670,3.67332573,3698.6,3698.5,4.906]
[1753436915869,2.70387194,3698.4,3698.3,0.1352]
[1753436916075,2.70401817,3698.2,3698.1,7.043]
[1753436916235,3.63184625,3698.2,3697.5,1.4976]
[1753436916562,3.63184625,3698.2,3698.0,0.55]
[1753436916729,3.63184625,3698.2,3698.1,4.356]
[1753436916730,2.70404625,3698.2,3698.1,4.356]
[1753436917445,3.63184625,3698.2,3698.1,4.356]
[1753436917832,2.70409129,3698.1,3697.9,0.1352]
[1753436918036,3.63191479,3698.1,3698.0,4.356]
[1753436918234,3.63191479,3698.1,3697.1,1.4422]
[1753436918235,0.9278,3698.1,3697.1,1.4422]
[1753436918470,2.70446941,3697.6,3697.2,4.4912]
[1753436918788,2.70482759,3697.1,3696.7,1.4422]
[1753436918938,2.70512335,3696.7,3695.9,2.70565305]
[1753436919273,2.70512335,3696.7,3695.8,1.9162]
[1753436919274,2.70532121,3696.5,3696.4,0.55]
[1753436919471,2.70532121,3696.5,3696.4,5.15162591]
[1753436919661,3.63304039,3696.6,3696.4,4.60162591]
[1753436919861,3.63304039,3696.6,3696.5,0.24562591]
[1753436920773,0.9278,3696.6,3696.5,0.24562591]
[1753436921073,0.1352,3696.8,3696.5,4.60162591]
[1753436921240,3.76805574,3696.8,3696.6,0.24562591]
[1753436921570,3.76805574,3696.8,3696.7,0.24562591]
[1753436921771,1.063,3696.8,3696.7,0.24562591]
[1753436921976,3.76804219,3696.8,3696.7,0.24562591]
[1753436922639,1.063,3696.8,3696.7,0.24562591]
[1753436922839,6.76804219,3696.8,3696.7,0.24562591]
[1753436923058,6.76804219,3696.8,3696.7,4.60162591]
[1753436923264,4.063,3696.8,3696.7,4.60162591]
[1753436923463,6.76804219,3696.8,3696.7,4.60162591]
[1753436923777,1.5351,3697.0,3696.7,4.60162591]
[1753436923975,0.1352,3696.9,3696.8,0.24562591]
[1753436924474,2.84016902,3696.9,3696.8,0.24562591]
[1753436924865,0.1352,3696.9,3696.8,0.24562591]
[1753436925066,3.9278,3697.1,3696.8,0.24562591]
[1753436925255,3.9278,3697.1,3696.9,0.24562591]
[1753436925256,2.70489586,3697.0,3696.9,0.24562591]
[1753436925459,3.63269586,3697.0,3696.9,0.24562591]
[1753436925652,3.63269586,3697.0,3696.7,4.356]
[1753436925977,0.9278,3697.0,3696.8,0.24657026]
[1753436926176,3.63276902,3696.9,3696.7,4.356]
[1753436926353,3.63276902,3696.9,3696.8,0.24674481]
[1753436926937,3.63276902,3696.9,3696.8,4.60274481]
[1753436927178,3.63276902,3696.9,3696.8,4.356]
[1753436927681,2.70513527,3696.7,3696.0,0.474]
[1753436927882,2.70540811,3696.3,3696.2,0.1352]
[1753436928090,1.5305,3696.7,3696.2,0.24697156]
[1753436928091,2.70514017,3696.7,3696.2,0.24697156]
[1753436928297,3.0,3696.8,3696.6,0.55]
[1753436928591,2.70504219,3696.8,3696.7,4.356]
[1753436929376,3.9278,3696.8,3696.6,0.55]
[1753436929689,0.9278,3696.8,3696.7,4.60312891]
[1753436929892,0.1352,3697.0,3696.7,4.60312891]
[1753436930094,0.1352,3697.0,3696.7,5.7345]
[1753436930291,1.50985758,3697.4,3696.7,5.7345]
[1753436930292,2.70472629,3697.3,3696.8,1.27113733]
[1753436930494,2.83999526,3697.2,3696.8,1.025]
[1753436931103,3.76779526,3697.2,3696.8,1.025]
[1753436931403,3.7677592,3697.2,3696.8,1.025]
[1753436931801,1.063,3697.2,3696.8,1.025]
[1753436932305,2.70489586,3697.0,3696.9,4.356]
[1753436932604,1.5305,3697.5,3697.0,0.55]
[1753436932605,3.0,3697.4,3697.0,0.55]
[1753436932811,3.1352,3697.4,3697.0,0.55]
[1753436933013,2.7047194,3697.3,3697.0,0.55]
[1753436933499,4.063,3697.4,3697.0,0.55]
[1753436933688,0.3199,3698.0,3697.0,0.55]
[1753436933689,2.70436806,3697.8,3697.2,3.25470289]
[1753436933892,0.1352,3697.9,3697.4,0.55]
[1753436934063,0.1352,3697.9,3697.4,0.6852]
[1753436934064,0.9278,3697.8,3697.4,0.6852]
[1753436934267,2.70453008,3697.5,3697.4,0.1352]
[1753436934569,2.70448304,3697.6,3697.4,4.356]
[1753436934815,0.1352,3697.7,3697.4,4.356]
[1753436935101,2.70398775,3698.3,3697.7,0.55]
[1753436935306,2.70398775,3698.3,3697.9,0.55]
[1753436935533,2.83908581,3698.4,3698.0,0.474]
[1753436935736,2.83907827,3698.4,3698.2,0.55]
[1753436935882,2.70387827,3698.4,3698.2,0.55]
[1753436936222,0.1352,3698.6,3698.2,0.55]
[1753436936430,0.1352,3698.7,3698.2,0.55]
[1753436936593,2.83871467,3698.9,3698.4,0.6852]
[1753436936922,2.70361291,3698.8,3698.5,5.7335]
[1753436937136,2.70367162,3698.7,3698.5,4.355]
[1753436937295,1.4928,3699.3,3698.0,0.55]
[1753436937296,0.9278,3698.6,3698.0,0.55]
[1753436937496,0.1352,3698.5,3698.0,0.6852]
[1753436937690,0.1352,3698.5,3698.1,4.829]
[1753436937886,5.70394505,3698.3,3698.2,4.355]
[1753436938112,2.83904359,3698.5,3698.2,4.355]
[1753436938421,2.83904359,3698.5,3698.2,4.829]
[1753436938623,0.1352,3698.5,3698.0,0.16224164]
[1753436938820,2.70387194,3698.4,3698.3,4.355]
[1753436938986,3.63167194,3698.4,3698.1,0.55]
[1753436939187,2.70394505,3698.3,3698.2,4.355]
[1753436939590,2.70405969,3698.2,3698.1,0.55]
[1753436939793,2.70405969,3698.2,3698.1,4.905]
[1753436940016,2.70405969,3698.2,3698.1,0.55]
[1753436940235,2.3945,3698.2,3697.2,4.3]
[1753436940414,2.70445694,3697.6,3697.3,0.1352]
[1753436940725,2.70467638,3697.3,3697.2,0.1352]
[1753436940908,2.70460652,3697.4,3697.3,0.55]
[1753436941116,2.70467638,3697.3,3696.8,0.9055]
[1753436941438,0.9278,3697.3,3697.1,4.354]
[1753436941601,2.70469387,3697.3,3697.1,4.354]
[1753436941922,2.70474954,3697.2,3697.1,4.354]
[1753436942624,2.70480332,3697.2,3697.0,0.55]
[1753436942917,0.1352,3697.4,3696.9,0.6852]
[1753436942918,2.70489586,3697.0,3696.9,0.6852]
[1753436943136,6.63269586,3697.0,3696.9,5.0392]
[1753436943340,6.63269586,3697.0,3696.9,0.6852]
[1753436943505,6.63269586,3697.0,3696.9,5.0392]
[1753436943711,6.63269586,3697.0,3696.9,0.55]
[1753436944048,6.63269586,3697.0,3696.9,4.904]
[1753436945107,4.30654984,3697.4,3696.9,4.904]
[1753436945108,2.70474954,3697.2,3696.9,4.904]
[1753436945311,1.6019,3697.4,3696.9,4.904]
[1753436945525,2.70489586,3697.0,3696.9,4.904]
[1753436945723,2.70489586,3697.0,3696.9,0.55]
[1753436946033,2.70489586,3697.0,3696.9,4.904]
[1753436947838,5.70496902,3696.9,3696.8,0.001]
[1753436948043,6.63426902,3696.9,3696.8,4.355]
[1753436948579,5.70496902,3696.9,3696.8,0.001]
[1753436948736,8.39446902,3696.9,3696.8,1e-08]
[1753436950766,12.74746902,3696.9,3696.8,1e-08]
[1753436953385,8.39446902,3696.9,3696.8,1e-08]
[1753436953679,12.74746902,3696.9,3696.8,1e-08]
[1753436954866,8.39446902,3696.9,3696.8,1e-08]
[1753436955066,12.74746902,3696.9,3696.8,1e-08]
[1753436956546,12.42856902,3696.9,3696.8,1e-08]
[1753436956749,8.07456902,3696.9,3696.8,1e-08]
[1753436956985,12.42756902,3696.9,3696.8,1e-08]
[1753436957280,12.74746902,3696.9,3696.8,1e-08]
[1753436957479,10.0425,3696.9,3696.8,1e-08]
[1753436957645,12.74746902,3696.9,3696.8,1e-08]
[1753436959049,5.7054813,3696.2,3696.1,0.001]
[1753436959256,5.8406813,3696.2,3696.1,0.001]
[1753436959587,5.8406813,3696.2,3696.1,0.4385]
[1753436959880,5.8406813,3696.2,3696.1,0.001]
[1753436960192,5.8406813,3696.2,3696.1,1.3555]
[1753436960579,5.8406813,3696.2,3696.1,0.4385]
[1753436961084,5.3406813,3696.2,3696.1,0.001]
[1753436961595,2.2054813,3696.2,3696.1,1.3555]
[1753436963976,2.2054813,3696.2,3696.1,0.001]
[1753436964289,2.3406813,3696.2,3696.1,0.001]
[1753436964752,2.3406813,3696.2,3696.1,0.4385]
[1753436965284,2.3406813,3696.2,3695.4,1.4797]
[1753436965285,1.5224,3694.6,3693.3,1.4075]
[1753436965493,1.5224,3694.6,3693.4,4.352]
[1753436965698,2.70705561,3694.1,3693.4,4.352]
[1753436965997,2.70716595,3693.9,3693.5,1.3545]
[1753436966173,2.70716595,3693.9,3693.4,4.352]
[1753436966174,2.70722888,3693.9,3693.6,1.3545]
[1753436966374,5.70664107,3694.7,3693.7,1.4998]
[1753436966589,2.70715664,3694.0,3693.8,1.3545]
[1753436966792,2.707154,3694.0,3693.9,1.3545]
[1753436966980,3.0,3694.8,3693.9,5.7165]
[1753436967177,2.7070193,3694.1,3694.0,1.9045]
[1753436967370,2.7070193,3694.1,3694.0,1.3545]
[1753436967908,0.9293,3694.8,3694.0,1.3545]
[1753436968134,0.9293,3694.8,3693.7,1.4998]
[1753436968135,2.70657969,3694.7,3694.1,5.7165]
[1753436968293,2.70675084,3694.5,3694.2,1.3545]
[1753436968492,2.70675084,3694.5,3694.1,4.362]
[1753436968804,1.4257,3695.2,3694.5,1.5078]
[1753436969009,2.70663369,3694.7,3694.6,1.3545]
[1753436969235,2.70652259,3694.8,3694.6,1.3545]
[1753436969394,2.70652259,3694.8,3694.0,0.55]
[1753436969395,1.4239,3696.7,3694.9,1.5078]
[1753436969594,1.4239,3696.7,3695.6,0.55]
[1753436969832,1.4239,3696.7,3695.3,0.55]
[1753436969833,1.4239,3696.7,3695.8,0.55]
[1753436970126,2.7056277,3696.0,3695.9,2.20186188]
[1753436970332,2.7056277,3696.0,3695.9,4.61546188]
[1753436970530,2.7056277,3696.0,3695.9,0.24746188]
[1753436970735,2.70584733,3695.7,3695.6,0.4375]
[1753436971029,3.9293,3696.5,3695.6,5.97006141]
[1753436971195,2.70566069,3696.0,3695.7,0.24756141]
[1753436971395,2.70566069,3696.0,3695.8,0.24756141]
[1753436971646,1.4239,3696.7,3695.9,1.60206141]
[1753436971823,2.70541927,3696.3,3696.0,2.15203295]
[1753436972025,2.70496902,3696.9,3696.1,1.3545]
[1753436972341,0.9293,3697.0,3696.2,4.366]
[1753436972550,2.70532204,3696.5,3696.3,1.4639]
[1753436972727,2.70526352,3696.5,3696.4,1.3545]
[1753436973037,2.70526173,3696.5,3696.4,4.366]
[1753436973715,3.63456173,3696.5,3696.4,4.366]
[1753436973910,2.7055545,3696.1,3696.0,0.4375]
[1753436974115,2.7055545,3696.1,3696.0,4.8015]
[1753436974611,2.7055545,3696.1,3696.0,4.8005]
[1753436975352,2.7055545,3696.1,3696.0,5.7175]
[1753436976013,2.70548271,3696.2,3696.0,5.7175]
[1753436976214,2.70548271,3696.2,3696.1,0.4536]
[1753436976414,2.70548271,3696.2,3696.1,1.3736]
[1753436976651,2.70548271,3696.2,3696.1,5.7346]
[1753436976952,2.70548271,3696.2,3696.1,4.8106]
[1753436977151,2.70548271,3696.2,3696.1,4.357]
[1753436977657,6.56743294,3696.2,3696.1,4.356]
[1753436977947,5.7055545,3696.1,3696.0,4.358]
[1753436978314,2.706067,3695.4,3695.3,1.9236]
[1753436978520,2.706067,3695.4,3695.3,6.2806]
[1753436978820,2.70596778,3695.6,3695.4,0.55]
[1753436979014,2.70596778,3695.6,3695.5,1.9236]
[1753436980513,2.70596778,3695.6,3695.5,5.3566]
[1753436980728,2.70580358,3695.8,3695.5,6.2766]
[1753436980923,2.70585019,3695.7,3695.6,1.3736]
[1753436981644,2.70585019,3695.7,3695.6,5.7266]
[1753436981840,2.70585019,3695.7,3695.6,1.3736]
[1753436982041,2.70585019,3695.7,3695.6,4.8066]
[1753436982245,2.70585019,3695.7,3695.6,4.353]
[1753436983336,2.70599377,3695.5,3695.4,0.55]
[1753436983655,2.70599377,3695.5,3695.4,5.3566]
[1753436984056,2.70594983,3695.6,3695.4,5.3566]
[1753436984380,2.70586913,3695.7,3695.5,0.4536]
[1753436984527,2.70586913,3695.7,3695.5,0.92]
[1753436984732,2.7057989,3695.8,3695.6,1.3736]
[1753436984946,2.7057989,3695.8,3695.7,4.353]
[1753436985140,2.7057989,3695.8,3695.7,4.8066]
[1753436986654,2.70577412,3695.8,3695.7,4.353]
[1753436987675,2.84097412,3695.8,3695.7,4.353]
[1753436988040,2.70599371,3695.6,3695.4,0.55]
[1753436988252,2.70599371,3695.6,3695.5,4.352]
[1753436988570,0.1352,3695.8,3695.2,0.1352]
[1753436988769,2.706067,3695.4,3695.3,4.352]
[1753436988981,2.70618856,3695.3,3695.1,1.9551]
[1753436989188,2.70621346,3695.2,3695.1,2.0515]
[1753436989686,2.70621346,3695.2,3695.1,2.5051]
[1753436990597,2.70621346,3695.2,3695.1,0.55]
[1753436990788,2.70621346,3695.2,3694.9,0.001]
[1753436990789,2.70635994,3695.0,3694.9,0.001]
[1753436990980,2.84155994,3695.0,3694.9,0.001]
[1753436991486,3.70345994,3695.0,3694.9,0.001]
[1753436991792,5.25785994,3695.0,3694.9,0.001]
[1753436992755,8.25785994,3695.0,3694.9,0.001]
[1753436992972,12.60985994,3695.0,3694.9,0.001]
[1753436993753,8.25785994,3695.0,3694.9,0.001]
[1753436994080,12.60985994,3695.0,3694.9,0.001]
[1753436995856,8.25785994,3695.0,3694.9,0.001]
[1753436996170,5.84155994,3695.0,3694.9,0.4546]
[1753436997053,5.84155994,3695.0,3694.9,0.001]
[1753436997392,6.70345994,3695.0,3694.9,0.001]
[1753436997754,5.84155994,3695.0,3694.9,1e-08]
[1753436997987,8.22255994,3695.0,3694.9,1e-08]
[1753436998194,12.57455994,3695.0,3694.9,1e-08]
[1753436998697,8.22255994,3695.0,3694.9,1e-08]
[1753436998996,12.57455994,3695.0,3694.9,1e-08]
[1753436999424,8.22255994,3695.0,3694.9,1e-08]
[1753436999699,10.19355994,3695.0,3694.9,1e-08]
[1753436999998,11.05545994,3695.0,3694.9,1e-08]
[1753437000296,10.19355994,3695.0,3694.9,1e-08]
[1753437000500,5.84155994,3695.0,3694.9,1e-08]
[1753437000671,10.19355994,3695.0,3694.9,1e-08]
[1753437000866,11.05545994,3695.0,3694.9,1e-08]
[1753437001503,5.84155994,3695.0,3694.9,1e-08]
[1753437001705,2.84155994,3695.0,3694.9,0.45360001]
[1753437002004,2.84155994,3695.0,3694.9,1e-08]
[1753437002709,3.70345994,3695.0,3694.9,1e-08]
[1753437003004,9.45565994,3695.0,3694.9,1e-08]
[1753437004018,5.10365994,3695.0,3694.9,1e-08]
[1753437004214,9.45565994,3695.0,3694.9,1e-08]
[1753437004724,2.84155994,3695.0,3694.9,1e-08]
[1753437005299,2.84155994,3695.0,3694.9,1.37360001]
[1753437006198,2.70615654,3695.3,3695.0,0.55]
[1753437006400,2.70614023,3695.3,3695.2,0.55]
[1753437006609,2.70614023,3695.3,3695.2,1.8801]
[1753437008410,0.1352,3695.6,3695.2,1.8801]
[1753437008627,2.70614023,3695.3,3695.2,0.55]
[1753437008940,2.70608935,3695.4,3695.2,0.55]
[1753437009325,2.70608935,3695.4,3695.3,1.3301]
[1753437011651,1.4142,3696.4,3695.3,1.3301]
[1753437011652,0.002,3696.9,3695.6,0.55]
[1753437011831,0.1352,3696.6,3696.2,0.55]
[1753437012051,0.1352,3696.8,3696.2,4.9]
[1753437012343,5.70728151,3696.5,3696.4,0.55]
[1753437012555,5.70728151,3696.5,3696.4,0.9831]
[1753437012750,2.70726173,3696.5,3696.4,1.8801]
[1753437014364,2.70726173,3696.5,3696.4,7.7058]
[1753437014523,0.002,3696.5,3696.4,7.7058]
[1753437014723,2.70726173,3696.5,3696.4,7.7058]
[1753437015627,0.002,3696.5,3696.4,7.7058]
[1753437016051,0.002,3696.5,3696.4,10.41113492]
[1753437017235,0.002,3696.5,3696.4,13.41113492]
[1753437017767,0.002,3696.9,3696.8,3.25504219]
[1753437018063,0.002,3696.9,3696.8,9.10684219]
[1753437018463,0.002,3696.9,3696.8,10.43694219]
[1753437019126,0.002,3696.9,3696.8,10.43594219]
[1753437022462,0.002,3696.9,3696.8,2.4859]
[1753437022624,0.002,3696.9,3696.8,6.8329]
[1753437022821,0.002,3696.9,3696.8,10.43494219]
[1753437023049,0.002,3696.9,3696.8,7.7299]
[1753437023426,0.002,3696.9,3696.8,10.43494219]
[1753437027852,0.002,3696.9,3696.8,10.57014219]
[1753437028872,0.002,3696.9,3696.8,3.5181]
[1753437029050,0.002,3696.9,3696.8,1.638]
[1753437029251,0.002,3696.9,3696.8,5.983]
[1753437029451,0.002,3696.9,3696.8,1.638]
[1753437029652,0.002,3696.9,3696.8,5.982]
[1753437030182,0.002,3696.9,3696.8,6.532]
[1753437030485,0.002,3696.9,3696.8,10.56714219]
[1753437030850,0.002,3696.9,3696.8,13.56714219]
[1753437031584,0.002,3696.9,3696.8,9.22314219]
[1753437031776,0.002,3696.9,3696.8,13.56714219]
[1753437032286,0.002,3696.9,3696.8,8.68704219]
[1753437032855,0.002,3696.9,3696.8,0.1352]
[1753437033187,0.002,3696.9,3696.8,5.0292]
[1753437034485,0.002,3696.9,3696.8,8.16734219]
[1753437035149,0.002,3696.9,3696.8,5.4623]
[1753437035350,0.002,3696.9,3696.8,8.16734219]
[1753437036287,0.002,3696.9,3696.8,5.4623]
[1753437036587,0.002,3696.9,3696.8,8.16734219]
[1753437037089,0.002,3696.9,3696.8,5.4623]
[1753437037790,0.002,3696.9,3696.8,9.03489261]
[1753437037951,0.002,3696.9,3696.8,9.00784219]
[1753437038152,0.002,3696.9,3696.8,10.49964219]
[1753437038783,0.002,3696.9,3696.8,3.4506]
[1753437038951,0.002,3696.9,3696.8,2.6101]
[1753437039153,0.002,3696.9,3696.8,9.65714219]
[1753437039386,0.002,3696.9,3696.8,3.39024219]
[1753437039695,0.002,3696.9,3696.8,0.6852]